{"text_format":"1","workbook":"xlsx","n_sheets":3,"sheets":["Zuwendungsempfänger","Belegübersicht","Standard"],"not_rendered":{"charts":0,"images":2,"macros":1,"external_links":0,"defined_names":14,"comments":0,"pivot_tables":0},"unopened":[],"bounds":{"document_bytes":16777216,"sheet_cells":100000,"rows_first":2000,"rows_last":500,"rows_between":2000,"halvings":0,"cell_chars":16384,"cell_head_chars":4096},"cells_cut":0,"cells_raw":0,"read":"whole","date_system":"1900"}

{"sheet":"Zuwendungsempfänger","index":0,"n_rows":43,"n_cols":23,"rows_kept":43,"cut":false,"hidden":false,"merged":[[5,6,5,8],[5,9,5,10],[5,11,5,13],[5,14,5,16],[5,17,5,20],[26,0,26,2],[26,13,26,16],[26,17,26,20],[26,3,26,12],[9,10,9,12],[9,14,9,15],[9,16,9,18],[21,8,21,10],[14,8,14,20],[15,8,15,20],[16,8,16,20],[17,8,17,20],[18,8,18,20],[22,8,22,10],[27,0,27,2],[27,3,27,12],[27,13,27,16],[27,17,27,20],[28,0,28,2],[28,3,28,12],[30,0,30,2],[30,3,30,12],[30,13,30,16],[30,17,30,20],[28,13,28,16],[28,17,28,20],[29,0,29,2],[29,3,29,12],[29,13,29,16],[29,17,29,20],[31,0,31,2],[31,3,31,12],[31,13,31,16],[31,17,31,20],[32,0,32,2],[32,3,32,12],[32,13,32,16],[32,17,32,20],[33,0,33,2],[33,3,33,12],[33,13,33,16],[33,17,33,20],[34,0,34,2],[34,3,34,12],[34,13,34,16],[34,17,34,20],[36,13,36,16],[36,17,36,20],[35,0,35,2],[35,3,35,12],[35,13,35,16],[35,17,35,20]]}
["Belegübersicht "]
["Anlage zum Auszahlungsantrag"]
[]
[]
[null,null,null,null,null,null,"EU-Registriernummer"]
[null,null,null,null,null,null,"Nation",null,null,"BL",null,"LK",null,null,"Gemeinde",null,null,"Betrieb"]
[null,null,null,null,null,null,2,7,6,"0",3]
[]
[null,null,null,null,null,null,"Aktenzeichen"]
[]
[null,null,null,null,null,null,"I","V","N","-"]
[]
["Antragstellendes Unternehmen"]
[]
["Name / Bezeichnung:"]
["Vorname:"]
["Ortsteil:"]
["Straße und Hausnr.:"]
["PLZ, Ort:"]
[]
[]
["Datum des Zuwendungsbescheides:",null,null,null,null,null,null,null,null,null,null,null,null,null,null,null,null,null,null,null,null,null,{"$f":"I22","v":"00:00:00"}]
[]
[]
["Einzelbereiche der Investition (Ziffer 2.1 Zuwendungsbescheid)"]
[]
["Teilvorhaben Nr.",null,null,"Einzelbereiche der Investition",null,null,null,null,null,null,null,null,null,"Brutto Betrag\nEUR",null,null,null,"förderfähiges Investitions-Volumen\nEUR"]
[1,null,null,"Gülle-/ Jauchebehälter einschl. Vorplätze, Zäune, Überdachungen, Architektur- und Ingenieurleist.",null,null,null,null,null,null,null,null,null,{"$f":"SUMIF(Vorhabennummer,A28,gezahlterBetrag)","v":0},null,null,null,{"$f":"SUMIF(Vorhabennummer,A28,förderfähig)","v":0}]
[2,null,null,"Festmistlager einschl. Vorplätze, Zäune, Überdachungen, Architektur- und Ingenieurleist.",null,null,null,null,null,null,null,null,null,0,null,null,null,0]
[3,null,null,"Abdeckung bestehender Wirtschaftsdüngerlagerstätten",null,null,null,null,null,null,null,null,null,0,null,null,null,0]
[4,null,null,"Gülleaufbereitungsanlagen",null,null,null,null,null,null,null,null,null,0,null,null,null,0]
[5,null,null,"digitale Landtechnik",null,null,null,null,null,null,null,null,null,0,null,null,null,0]
[6,null,null,"Betreuung des Antragsverfahrens",null,null,null,null,null,null,null,null,null,0,null,null,null,0]
[7,null,null,"\nBaugenehmigung, Statikprüfung, sonstig nicht förderfähig         \n",null,null,null,null,null,null,null,null,null,0,null,null,null,0]
[null,null,null,null,null,null,null,null,null,null,null,null,null,0,null,null,null,0]
[null,null,null,null,null,null,null,null,null,null,null,null,null,0,null,null,null,0]
["Summe:",null,null,null,null,null,null,null,null,null,null,null,null,{"$f":"SUM(N28:Q36)","v":0},null,null,null,{"$f":"SUM(R28:U36)","v":0}]
[]
[]
["Ort, Datum",null,null,null,null,null,"Unterschrift/en (Antragstellende bzw. vertretungsberechtigte/bevollmächtigte Person"]
[null,null,null,null,null,null,"oder aller Mitglieder einer GbR, UG (haftungsbeschränkt) bzw. Limited) "]
[]
["Die Hinweise zur Belegübersicht sind zu beachten."]

{"sheet":"Belegübersicht","index":1,"n_rows":426,"n_cols":30,"rows_kept":426,"cut":false,"hidden":false,"merged":[]}
["Belegübersicht",null,null,null,{"$f":"\"EU-Reg.-Nr.: \"&Zuwendungsempfänger!$G$7&Zuwendungsempfänger!$H$7&Zuwendungsempfänger!$I$7&\" \"&Zuwendungsempfänger!$J$7&Zuwendungsempfänger!$K$7&\" \"&Zuwendungsempfänger!$L$7&Zuwendungsempfänger!$M$7&Zuwendungsempfänger!$N$7&\" \"&Zuwendungsempfänger!$O$7&Zuwendungsempfänger!$P$7&Zuwendungsempfänger!$Q$7&\" \"&Zuwendungsempfänger!$R$7&Zuwendungsempfänger!$S$7&Zuwendungsempfänger!$T$7&Zuwendungsempfänger!$U$7","v":"EU-Reg.-Nr.: 276 03   "}]
[{"$f":"Zuwendungsempfänger!I15","v":0},null,null,null,{"$f":"\"IVN-\"&Zuwendungsempfänger!$K$11&Zuwendungsempfänger!$L$11&Zuwendungsempfänger!$M$11&Zuwendungsempfänger!$N$11&Zuwendungsempfänger!$O$11&Zuwendungsempfänger!$P$11&Zuwendungsempfänger!$Q$11&Zuwendungsempfänger!$R$11&Zuwendungsempfänger!$S$11","v":"IVN-"},null,null,null,null,null,null,null,null,null,null,{"$f":"COUNTA($B$7:$B$308)+6","v":6}]
[null,null,null,null,null,null,null,null,null,null,null,null,null,null,null,{"$f":"\"A1:M\"&COUNTA(B7:B306)+5","v":"A1:M5"}]
["Teil- vorh.\n","Beleg \n","Bestellung","Rechnung\n","Rech-Nr.","bezahlt am \n","Rechnungsaussteller","Rechnungsgegenstand","Gewerk","gezahlter Betrag \n","Umsatz-\nsteuer","Nettobetrag\n","nicht förderf. Betrag","förderfähiges Investitions-volumen\n"]
[null,null,null,null,null,null,null,null,null,{"$f":"SUBTOTAL(9,gezahlterBetrag)","v":0},{"$f":"SUBTOTAL(9,K6:K305)","v":0},{"$f":"SUBTOTAL(9,L6:L305)","v":0},{"$f":"SUBTOTAL(9,M6:M305)","v":0},{"$f":"SUBTOTAL(9,N6:N305)","v":0}]
["Nr.","Nr.","Datum","Datum","Nr.","Datum",null,null,null,"EUR","EUR","EUR","EUR","EUR",null,"lfd_Nummer","Rechnungsaussteller","Rechnungsnummer","Rechnungsposition","Bezug","Auftragsdatum","Rechnungsdatum","gezahlt_am","gezahlt_durch","Nettobetrag","Mehrwertsteuer","Skonti_Rabatte","Bruttobetrag","davon_foerderfaehig_lt_Antragsteller","Teilvorhaben_Nr"]
[null,null,null,null,null,null,null,null,null,null,null,null,null,null,null,{"$f":"IF(ISBLANK(B7)=TRUE,\"\",B7)","v":""},{"$f":"IF(ISBLANK(G7)=TRUE,\"\",G7)","v":""},{"$f":"IF(ISBLANK(E7)=TRUE,\"1\",E7)","v":"1"},{"$f":"IF(ISBLANK(I7)=TRUE,\"\",I7)","v":""},{"$f":"IF(ISBLANK(H7)=TRUE,\"\",H7)","v":""},{"$f":"IF(ISBLANK(C7)=TRUE,\"\",C7)","v":""},{"$f":"IF(ISBLANK(D7)=TRUE,\"\",D7)","v":""},{"$f":"IF(ISBLANK(F7)=TRUE,\"\",F7)","v":""},null,{"$f":"IF(ISBLANK(L7)=TRUE,\"\",L7)","v":""},{"$f":"IF(ISBLANK(K7)=TRUE,\"\",K7)","v":""},null,{"$f":"IF(ISBLANK(J7)=TRUE,\"\",J7)","v":""},{"$f":"IF(ISBLANK(N7)=TRUE,\"\",N7)","v":""},{"$f":"IF(ISBLANK(A7)=TRUE,\"\",A7)","v":""}]
[null,null,null,null,null,null,null,null,null,null,null,null,null,null,null,"","","1","","","","","",null,"","",null,"","",""]
[null,null,null,null,null,null,null,null,null,null,null,null,null,null,null,"","","1","","","","","",null,"","",null,"","",""]
[null,null,null,null,null,null,null,null,null,null,null,null,null,null,null,"","","1","","","","","",null,"","",null,"","",""]
[null,null,null,null,null,null,null,null,null,null,null,null,null,null,null,"","","1","","","","","",null,"","",null,"","",""]
[null,null,null,null,null,null,null,null,null,null,null,null,null,null,null,"","","1","","","","","",null,"","",null,"","",""]
[null,null,null,null,null,null,null,null,null,null,null,null,null,null,null,"","","1","","","","","",null,"","",null,"","",""]
[null,null,null,null,null,null,null,null,null,null,null,null,null,null,null,"","","1","","","","","",null,"","",null,"","",""]
[null,null,null,null,null,null,null,null,null,null,null,null,null,null,null,"","","1","","","","","",null,"","",null,"","",""]
[null,null,null,null,null,null,null,null,null,null,null,null,null,null,null,"","","1","","","","","",null,"","",null,"","",""]
[null,null,null,null,null,null,null,null,null,null,null,null,null,null,null,"","","1","","","","","",null,"","",null,"","",""]
[null,null,null,null,null,null,null,null,null,null,null,null,null,null,null,"","","1","","","","","",null,"","",null,"","",""]
[null,null,null,null,null,null,null,null,null,null,null,null,null,null,null,"","","1","","","","","",null,"","",null,"","",""]
[null,null,null,null,null,null,null,null,null,null,null,null,null,null,null,"","","1","","","","","",null,"","",null,"","",""]
[null,null,null,null,null,null,null,null,null,null,null,null,null,null,null,"","","1","","","","","",null,"","",null,"","",""]
[null,null,null,null,null,null,null,null,null,null,null,null,null,null,null,"","","1","","","","","",null,"","",null,"","",""]
[null,null,null,null,null,null,null,null,null,null,null,null,null,null,null,"","","1","","","","","",null,"","",null,"","",""]
[null,null,null,null,null,null,null,null,null,null,null,null,null,null,null,"","","1","","","","","",null,"","",null,"","",""]
[null,null,null,null,null,null,null,null,null,null,null,null,null,null,null,"","","1","","","","","",null,"","",null,"","",""]
[null,null,null,null,null,null,null,null,null,null,null,null,null,null,null,"","","1","","","","","",null,"","",null,"","",""]
[null,null,null,null,null,null,null,null,null,null,null,null,null,null,null,"","","1","","","","","",null,"","",null,"","",""]
[null,null,null,null,null,null,null,null,null,null,null,null,null,null,null,"","","1","","","","","",null,"","",null,"","",""]
[null,null,null,null,null,null,null,null,null,null,null,null,null,null,null,"","","1","","","","","",null,"","",null,"","",""]
[null,null,null,null,null,null,null,null,null,null,null,null,null,null,null,"","","1","","","","","",null,"","",null,"","",""]
[null,null,null,null,null,null,null,null,null,null,null,null,null,null,null,"","","1","","","","","",null,"","",null,"","",""]
[null,null,null,null,null,null,null,null,null,null,null,null,null,null,null,"","","1","","","","","",null,"","",null,"","",""]
[null,null,null,null,null,null,null,null,null,null,null,null,null,null,null,"","","1","","","","","",null,"","",null,"","",""]
[null,null,null,null,null,null,null,null,null,null,null,null,null,null,null,"","","1","","","","","",null,"","",null,"","",""]
[null,null,null,null,null,null,null,null,null,null,null,null,null,null,null,"","","1","","","","","",null,"","",null,"","",""]
[null,null,null,null,null,null,null,null,null,null,null,null,null,null,null,"","","1","","","","","",null,"","",null,"","",""]
[null,null,null,null,null,null,null,null,null,null,null,null,null,null,null,"","","1","","","","","",null,"","",null,"","",""]
[null,null,null,null,null,null,null,null,null,null,null,null,null,null,null,"","","1","","","","","",null,"","",null,"","",""]
[null,null,null,null,null,null,null,null,null,null,null,null,null,null,null,"","","1",{"$f":"IF(ISBLANK(I39)=TRUE,\"\",I39)","v":""},"","","","",null,"","",null,"","",""]
[null,null,null,null,null,null,null,null,null,null,null,null,null,null,null,"","","1","","","","","",null,"","",null,"","",""]
[null,null,null,null,null,null,null,null,null,null,null,null,null,null,null,"","","1","","","","","",null,"","",null,"","",""]
[null,null,null,null,null,null,null,null,null,null,null,null,null,null,null,"","","1","","","","","",null,"","",null,"","",""]
[null,null,null,null,null,null,null,null,null,null,null,null,null,null,null,"","","1","","","","","",null,"","",null,"","",""]
[null,null,null,null,null,null,null,null,null,null,null,null,null,null,null,"","","1","","","","","",null,"","",null,"","",""]
[null,null,null,null,null,null,null,null,null,null,null,null,null,null,null,"","","1","","","","","",null,"","",null,"","",""]
[null,null,null,null,null,null,null,null,null,null,null,null,null,null,null,"","","1","","","","","",null,"","",null,"","",""]
[null,null,null,null,null,null,null,null,null,null,null,null,null,null,null,"","","1","","","","","",null,"","",null,"","",""]
[null,null,null,null,null,null,null,null,null,null,null,null,null,null,null,"","","1","","","","","",null,"","",null,"","",""]
[null,null,null,null,null,null,null,null,null,null,null,null,null,null,null,"","","1","","","","","",null,"","",null,"","",""]
[null,null,null,null,null,null,null,null,null,null,null,null,null,null,null,"","","1","","","","","",null,"","",null,"","",""]
[null,null,null,null,null,null,null,null,null,null,null,null,null,null,null,"","","1","","","","","",null,"","",null,"","",""]
[null,null,null,null,null,null,null,null,null,null,null,null,null,null,null,"","","1","","","","","",null,"","",null,"","",""]
[null,null,null,null,null,null,null,null,null,null,null,null,null,null,null,"","","1","","","","","",null,"","",null,"","",""]
[null,null,null,null,null,null,null,null,null,null,null,null,null,null,null,"","","1","","","","","",null,"","",null,"","",""]
[null,null,null,null,null,null,null,null,null,null,null,null,null,null,null,"","","1","","","","","",null,"","",null,"","",""]
[null,null,null,null,null,null,null,null,null,null,null,null,null,null,null,"","","1","","","","","",null,"","",null,"","",""]
[null,null,null,null,null,null,null,null,null,null,null,null,null,null,null,"","","1","","","","","",null,"","",null,"","",""]
[null,null,null,null,null,null,null,null,null,null,null,null,null,null,null,"","","1","","","","","",null,"","",null,"","",""]
[null,null,null,null,null,null,null,null,null,null,null,null,null,null,null,"","","1","","","","","",null,"","",null,"","",""]
[null,null,null,null,null,null,null,null,null,null,null,null,null,null,null,"","","1","","","","","",null,"","",null,"","",""]
[null,null,null,null,null,null,null,null,null,null,null,null,null,null,null,"","","1","","","","","",null,"","",null,"","",""]
[null,null,null,null,null,null,null,null,null,null,null,null,null,null,null,"","","1","","","","","",null,"","",null,"","",""]
[null,null,null,null,null,null,null,null,null,null,null,null,null,null,null,"","","1","","","","","",null,"","",null,"","",""]
[null,null,null,null,null,null,null,null,null,null,null,null,null,null,null,"","","1","","","","","",null,"","",null,"","",""]
[null,null,null,null,null,null,null,null,null,null,null,null,null,null,null,"","","1","","","","","",null,"","",null,"","",""]
[null,null,null,null,null,null,null,null,null,null,null,null,null,null,null,"","","1","","","","","",null,"","",null,"","",""]
[null,null,null,null,null,null,null,null,null,null,null,null,null,null,null,"","","1","","","","","",null,"","",null,"","",""]
[null,null,null,null,null,null,null,null,null,null,null,null,null,null,null,"","","1",null,"","","","",null,"","",null,"","",""]
[null,null,null,null,null,null,null,null,null,null,null,null,null,null,null,"","","1",null,"","","","",null,"","",null,"","",""]
[null,null,null,null,null,null,null,null,null,null,null,null,null,null,null,"","","1",null,"","","","",null,"","",null,"","",""]
[null,null,null,null,null,null,null,null,null,null,null,null,null,null,null,{"$f":"IF(ISBLANK(B71)=TRUE,\"\",B71)","v":""},{"$f":"IF(ISBLANK(G71)=TRUE,\"\",G71)","v":""},{"$f":"IF(ISBLANK(E71)=TRUE,\"1\",E71)","v":"1"},{"$f":"IF(ISBLANK(I71)=TRUE,\"\",I71)","v":""},{"$f":"IF(ISBLANK(H71)=TRUE,\"\",H71)","v":""},{"$f":"IF(ISBLANK(C71)=TRUE,\"\",C71)","v":""},{"$f":"IF(ISBLANK(D71)=TRUE,\"\",D71)","v":""},{"$f":"IF(ISBLANK(F71)=TRUE,\"\",F71)","v":""},null,{"$f":"IF(ISBLANK(L71)=TRUE,\"\",L71)","v":""},{"$f":"IF(ISBLANK(K71)=TRUE,\"\",K71)","v":""},null,{"$f":"IF(ISBLANK(J71)=TRUE,\"\",J71)","v":""},{"$f":"IF(ISBLANK(N71)=TRUE,\"\",N71)","v":""},{"$f":"IF(ISBLANK(A71)=TRUE,\"\",A71)","v":""}]
[null,null,null,null,null,null,null,null,null,null,null,null,null,null,null,"","","1","","","","","",null,"","",null,"","",""]
[null,null,null,null,null,null,null,null,null,null,null,null,null,null,null,"","","1","","","","","",null,"","",null,"","",""]
[null,null,null,null,null,null,null,null,null,null,null,null,null,null,null,"","","1","","","","","",null,"","",null,"","",""]
[null,null,null,null,null,null,null,null,null,null,null,null,null,null,null,"","","1","","","","","",null,"","",null,"","",""]
[null,null,null,null,null,null,null,null,null,null,null,null,null,null,null,"","","1","","","","","",null,"","",null,"","",""]
[null,null,null,null,null,null,null,null,null,null,null,null,null,null,null,"","","1","","","","","",null,"","",null,"","",""]
[null,null,null,null,null,null,null,null,null,null,null,null,null,null,null,"","","1","","","","","",null,"","",null,"","",""]
[null,null,null,null,null,null,null,null,null,null,null,null,null,null,null,"","","1","","","","","",null,"","",null,"","",""]
[null,null,null,null,null,null,null,null,null,null,null,null,null,null,null,"","","1","","","","","",null,"","",null,"","",""]
[null,null,null,null,null,null,null,null,null,null,null,null,null,null,null,"","","1","","","","","",null,"","",null,"","",""]
[null,null,null,null,null,null,null,null,null,null,null,null,null,null,null,"","","1","","","","","",null,"","",null,"","",""]
[null,null,null,null,null,null,null,null,null,null,null,null,null,null,null,"","","1","","","","","",null,"","",null,"","",""]
[null,null,null,null,null,null,null,null,null,null,null,null,null,null,null,"","","1","","","","","",null,"","",null,"","",""]
[null,null,null,null,null,null,null,null,null,null,null,null,null,null,null,"","","1","","","","","",null,"","",null,"","",""]
[null,null,null,null,null,null,null,null,null,null,null,null,null,null,null,"","","1","","","","","",null,"","",null,"","",""]
[null,null,null,null,null,null,null,null,null,null,null,null,null,null,null,"","","1","","","","","",null,"","",null,"","",""]
[null,null,null,null,null,null,null,null,null,null,null,null,null,null,null,"","","1","","","","","",null,"","",null,"","",""]
[null,null,null,null,null,null,null,null,null,null,null,null,null,null,null,"","","1","","","","","",null,"","",null,"","",""]
[null,null,null,null,null,null,null,null,null,null,null,null,null,null,null,"","","1","","","","","",null,"","",null,"","",""]
[null,null,null,null,null,null,null,null,null,null,null,null,null,null,null,"","","1","","","","","",null,"","",null,"","",""]
[null,null,null,null,null,null,null,null,null,null,null,null,null,null,null,"","","1","","","","","",null,"","",null,"","",""]
[null,null,null,null,null,null,null,null,null,null,null,null,null,null,null,"","","1","","","","","",null,"","",null,"","",""]
[null,null,null,null,null,null,null,null,null,null,null,null,null,null,null,"","","1","","","","","",null,"","",null,"","",""]
[null,null,null,null,null,null,null,null,null,null,null,null,null,null,null,"","","1","","","","","",null,"","",null,"","",""]
[null,null,null,null,null,null,null,null,null,null,null,null,null,null,null,"","","1","","","","","",null,"","",null,"","",""]
[null,null,null,null,null,null,null,null,null,null,null,null,null,null,null,"","","1","","","","","",null,"","",null,"","",""]
[null,null,null,null,null,null,null,null,null,null,null,null,null,null,null,"","","1","","","","","",null,"","",null,"","",""]
[null,null,null,null,null,null,null,null,null,null,null,null,null,null,null,"","","1","","","","","",null,"","",null,"","",""]
[null,null,null,null,null,null,null,null,null,null,null,null,null,null,null,"","","1","","","","","",null,"","",null,"","",""]
[null,null,null,null,null,null,null,null,null,null,null,null,null,null,null,"","","1","","","","","",null,"","",null,"","",""]
[null,null,null,null,null,null,null,null,null,null,null,null,null,null,null,"","","1","","","","","",null,"","",null,"","",""]
[null,null,null,null,null,null,null,null,null,null,null,null,null,null,null,"","","1","","","","","",null,"","",null,"","",""]
[null,null,null,null,null,null,null,null,null,null,null,null,null,null,null,"","","1","","","","","",null,"","",null,"","",""]
[null,null,null,null,null,null,null,null,null,null,null,null,null,null,null,"","","1","","","","","",null,"","",null,"","",""]
[null,null,null,null,null,null,null,null,null,null,null,null,null,null,null,"","","1","","","","","",null,"","",null,"","",""]
[null,null,null,null,null,null,null,null,null,null,null,null,null,null,null,"","","1","","","","","",null,"","",null,"","",""]
[null,null,null,null,null,null,null,null,null,null,null,null,null,null,null,"","","1","","","","","",null,"","",null,"","",""]
[null,null,null,null,null,null,null,null,null,null,null,null,null,null,null,"","","1","","","","","",null,"","",null,"","",""]
[null,null,null,null,null,null,null,null,null,null,null,null,null,null,null,"","","1","","","","","",null,"","",null,"","",""]
[null,null,null,null,null,null,null,null,null,null,null,null,null,null,null,"","","1","","","","","",null,"","",null,"","",""]
[null,null,null,null,null,null,null,null,null,null,null,null,null,null,null,"","","1","","","","","",null,"","",null,"","",""]
[null,null,null,null,null,null,null,null,null,null,null,null,null,null,null,"","","1","","","","","",null,"","",null,"","",""]
[null,null,null,null,null,null,null,null,null,null,null,null,null,null,null,"","","1","","","","","",null,"","",null,"","",""]
[null,null,null,null,null,null,null,null,null,null,null,null,null,null,null,"","","1","","","","","",null,"","",null,"","",""]
[null,null,null,null,null,null,null,null,null,null,null,null,null,null,null,"","","1","","","","","",null,"","",null,"","",""]
[null,null,null,null,null,null,null,null,null,null,null,null,null,null,null,"","","1","","","","","",null,"","",null,"","",""]
[null,null,null,null,null,null,null,null,null,null,null,null,null,null,null,"","","1","","","","","",null,"","",null,"","",""]
[null,null,null,null,null,null,null,null,null,null,null,null,null,null,null,"","","1","","","","","",null,"","",null,"","",""]
[null,null,null,null,null,null,null,null,null,null,null,null,null,null,null,"","","1","","","","","",null,"","",null,"","",""]
[null,null,null,null,null,null,null,null,null,null,null,null,null,null,null,"","","1","","","","","",null,"","",null,"","",""]
[null,null,null,null,null,null,null,null,null,null,null,null,null,null,null,"","","1","","","","","",null,"","",null,"","",""]
[null,null,null,null,null,null,null,null,null,null,null,null,null,null,null,"","","1","","","","","",null,"","",null,"","",""]
[null,null,null,null,null,null,null,null,null,null,null,null,null,null,null,"","","1","","","","","",null,"","",null,"","",""]
[null,null,null,null,null,null,null,null,null,null,null,null,null,null,null,"","","1","","","","","",null,"","",null,"","",""]
[null,null,null,null,null,null,null,null,null,null,null,null,null,null,null,"","","1","","","","","",null,"","",null,"","",""]
[null,null,null,null,null,null,null,null,null,null,null,null,null,null,null,"","","1","","","","","",null,"","",null,"","",""]
[null,null,null,null,null,null,null,null,null,null,null,null,null,null,null,"","","1","","","","","",null,"","",null,"","",""]
[null,null,null,null,null,null,null,null,null,null,null,null,null,null,null,"","","1","","","","","",null,"","",null,"","",""]
[null,null,null,null,null,null,null,null,null,null,null,null,null,null,null,"","","1","","","","","",null,"","",null,"","",""]
[null,null,null,null,null,null,null,null,null,null,null,null,null,null,null,"","","1","","","","","",null,"","",null,"","",""]
[null,null,null,null,null,null,null,null,null,null,null,null,null,null,null,"","","1","","","","","",null,"","",null,"","",""]
[null,null,null,null,null,null,null,null,null,null,null,null,null,null,null,"","","1","","","","","",null,"","",null,"","",""]
[null,null,null,null,null,null,null,null,null,null,null,null,null,null,null,"","","1","","","","","",null,"","",null,"","",""]
[null,null,null,null,null,null,null,null,null,null,null,null,null,null,null,{"$f":"IF(ISBLANK(B135)=TRUE,\"\",B135)","v":""},{"$f":"IF(ISBLANK(G135)=TRUE,\"\",G135)","v":""},{"$f":"IF(ISBLANK(E135)=TRUE,\"1\",E135)","v":"1"},{"$f":"IF(ISBLANK(I135)=TRUE,\"\",I135)","v":""},{"$f":"IF(ISBLANK(H135)=TRUE,\"\",H135)","v":""},{"$f":"IF(ISBLANK(C135)=TRUE,\"\",C135)","v":""},{"$f":"IF(ISBLANK(D135)=TRUE,\"\",D135)","v":""},{"$f":"IF(ISBLANK(F135)=TRUE,\"\",F135)","v":""},null,{"$f":"IF(ISBLANK(L135)=TRUE,\"\",L135)","v":""},{"$f":"IF(ISBLANK(K135)=TRUE,\"\",K135)","v":""},null,{"$f":"IF(ISBLANK(J135)=TRUE,\"\",J135)","v":""},{"$f":"IF(ISBLANK(N135)=TRUE,\"\",N135)","v":""},{"$f":"IF(ISBLANK(A135)=TRUE,\"\",A135)","v":""}]
[null,null,null,null,null,null,null,null,null,null,null,null,null,null,null,"","","1","","","","","",null,"","",null,"","",""]
[null,null,null,null,null,null,null,null,null,null,null,null,null,null,null,"","","1","","","","","",null,"","",null,"","",""]
[null,null,null,null,null,null,null,null,null,null,null,null,null,null,null,"","","1","","","","","",null,"","",null,"","",""]
[null,null,null,null,null,null,null,null,null,null,null,null,null,null,null,"","","1","","","","","",null,"","",null,"","",""]
[null,null,null,null,null,null,null,null,null,null,null,null,null,null,null,"","","1","","","","","",null,"","",null,"","",""]
[null,null,null,null,null,null,null,null,null,null,null,null,null,null,null,"","","1","","","","","",null,"","",null,"","",""]
[null,null,null,null,null,null,null,null,null,null,null,null,null,null,null,"","","1","","","","","",null,"","",null,"","",""]
[null,null,null,null,null,null,null,null,null,null,null,null,null,null,null,"","","1","","","","","",null,"","",null,"","",""]
[null,null,null,null,null,null,null,null,null,null,null,null,null,null,null,"","","1","","","","","",null,"","",null,"","",""]
[null,null,null,null,null,null,null,null,null,null,null,null,null,null,null,"","","1","","","","","",null,"","",null,"","",""]
[null,null,null,null,null,null,null,null,null,null,null,null,null,null,null,"","","1","","","","","",null,"","",null,"","",""]
[null,null,null,null,null,null,null,null,null,null,null,null,null,null,null,"","","1","","","","","",null,"","",null,"","",""]
[null,null,null,null,null,null,null,null,null,null,null,null,null,null,null,"","","1","","","","","",null,"","",null,"","",""]
[null,null,null,null,null,null,null,null,null,null,null,null,null,null,null,"","","1","","","","","",null,"","",null,"","",""]
[null,null,null,null,null,null,null,null,null,null,null,null,null,null,null,"","","1","","","","","",null,"","",null,"","",""]
[null,null,null,null,null,null,null,null,null,null,null,null,null,null,null,"","","1","","","","","",null,"","",null,"","",""]
[null,null,null,null,null,null,null,null,null,null,null,null,null,null,null,"","","1","","","","","",null,"","",null,"","",""]
[null,null,null,null,null,null,null,null,null,null,null,null,null,null,null,"","","1","","","","","",null,"","",null,"","",""]
[null,null,null,null,null,null,null,null,null,null,null,null,null,null,null,"","","1","","","","","",null,"","",null,"","",""]
[null,null,null,null,null,null,null,null,null,null,null,null,null,null,null,"","","1","","","","","",null,"","",null,"","",""]
[null,null,null,null,null,null,null,null,null,null,null,null,null,null,null,"","","1","","","","","",null,"","",null,"","",""]
[null,null,null,null,null,null,null,null,null,null,null,null,null,null,null,"","","1","","","","","",null,"","",null,"","",""]
[null,null,null,null,null,null,null,null,null,null,null,null,null,null,null,"","","1","","","","","",null,"","",null,"","",""]
[null,null,null,null,null,null,null,null,null,null,null,null,null,null,null,"","","1","","","","","",null,"","",null,"","",""]
[null,null,null,null,null,null,null,null,null,null,null,null,null,null,null,"","","1","","","","","",null,"","",null,"","",""]
[null,null,null,null,null,null,null,null,null,null,null,null,null,null,null,"","","1","","","","","",null,"","",null,"","",""]
[null,null,null,null,null,null,null,null,null,null,null,null,null,null,null,"","","1","","","","","",null,"","",null,"","",""]
[null,null,null,null,null,null,null,null,null,null,null,null,null,null,null,"","","1","","","","","",null,"","",null,"","",""]
[null,null,null,null,null,null,null,null,null,null,null,null,null,null,null,"","","1","","","","","",null,"","",null,"","",""]
[null,null,null,null,null,null,null,null,null,null,null,null,null,null,null,"","","1","","","","","",null,"","",null,"","",""]
[null,null,null,null,null,null,null,null,null,null,null,null,null,null,null,"","","1","","","","","",null,"","",null,"","",""]
[null,null,null,null,null,null,null,null,null,null,null,null,null,null,null,"","","1","","","","","",null,"","",null,"","",""]
[null,null,null,null,null,null,null,null,null,null,null,null,null,null,null,"","","1","","","","","",null,"","",null,"","",""]
[null,null,null,null,null,null,null,null,null,null,null,null,null,null,null,"","","1","","","","","",null,"","",null,"","",""]
[null,null,null,null,null,null,null,null,null,null,null,null,null,null,null,"","","1","","","","","",null,"","",null,"","",""]
[null,null,null,null,null,null,null,null,null,null,null,null,null,null,null,"","","1","","","","","",null,"","",null,"","",""]
[null,null,null,null,null,null,null,null,null,null,null,null,null,null,null,"","","1","","","","","",null,"","",null,"","",""]
[null,null,null,null,null,null,null,null,null,null,null,null,null,null,null,"","","1","","","","","",null,"","",null,"","",""]
[null,null,null,null,null,null,null,null,null,null,null,null,null,null,null,"","","1","","","","","",null,"","",null,"","",""]
[null,null,null,null,null,null,null,null,null,null,null,null,null,null,null,"","","1","","","","","",null,"","",null,"","",""]
[null,null,null,null,null,null,null,null,null,null,null,null,null,null,null,"","","1","","","","","",null,"","",null,"","",""]
[null,null,null,null,null,null,null,null,null,null,null,null,null,null,null,"","","1","","","","","",null,"","",null,"","",""]
[null,null,null,null,null,null,null,null,null,null,null,null,null,null,null,"","","1","","","","","",null,"","",null,"","",""]
[null,null,null,null,null,null,null,null,null,null,null,null,null,null,null,"","","1","","","","","",null,"","",null,"","",""]
[null,null,null,null,null,null,null,null,null,null,null,null,null,null,null,"","","1","","","","","",null,"","",null,"","",""]
[null,null,null,null,null,null,null,null,null,null,null,null,null,null,null,"","","1","","","","","",null,"","",null,"","",""]
[null,null,null,null,null,null,null,null,null,null,null,null,null,null,null,"","","1","","","","","",null,"","",null,"","",""]
[null,null,null,null,null,null,null,null,null,null,null,null,null,null,null,"","","1","","","","","",null,"","",null,"","",""]
[null,null,null,null,null,null,null,null,null,null,null,null,null,null,null,"","","1","","","","","",null,"","",null,"","",""]
[null,null,null,null,null,null,null,null,null,null,null,null,null,null,null,"","","1","","","","","",null,"","",null,"","",""]
[null,null,null,null,null,null,null,null,null,null,null,null,null,null,null,"","","1","","","","","",null,"","",null,"","",""]
[null,null,null,null,null,null,null,null,null,null,null,null,null,null,null,"","","1","","","","","",null,"","",null,"","",""]
[null,null,null,null,null,null,null,null,null,null,null,null,null,null,null,"","","1","","","","","",null,"","",null,"","",""]
[null,null,null,null,null,null,null,null,null,null,null,null,null,null,null,"","","1","","","","","",null,"","",null,"","",""]
[null,null,null,null,null,null,null,null,null,null,null,null,null,null,null,"","","1","","","","","",null,"","",null,"","",""]
[null,null,null,null,null,null,null,null,null,null,null,null,null,null,null,"","","1","","","","","",null,"","",null,"","",""]
[null,null,null,null,null,null,null,null,null,null,null,null,null,null,null,"","","1","","","","","",null,"","",null,"","",""]
[null,null,null,null,null,null,null,null,null,null,null,null,null,null,null,"","","1","","","","","",null,"","",null,"","",""]
[null,null,null,null,null,null,null,null,null,null,null,null,null,null,null,"","","1","","","","","",null,"","",null,"","",""]
[null,null,null,null,null,null,null,null,null,null,null,null,null,null,null,"","","1","","","","","",null,"","",null,"","",""]
[null,null,null,null,null,null,null,null,null,null,null,null,null,null,null,"","","1","","","","","",null,"","",null,"","",""]
[null,null,null,null,null,null,null,null,null,null,null,null,null,null,null,"","","1","","","","","",null,"","",null,"","",""]
[null,null,null,null,null,null,null,null,null,null,null,null,null,null,null,"","","1","","","","","",null,"","",null,"","",""]
[null,null,null,null,null,null,null,null,null,null,null,null,null,null,null,{"$f":"IF(ISBLANK(B199)=TRUE,\"\",B199)","v":""},{"$f":"IF(ISBLANK(G199)=TRUE,\"\",G199)","v":""},{"$f":"IF(ISBLANK(E199)=TRUE,\"1\",E199)","v":"1"},{"$f":"IF(ISBLANK(I199)=TRUE,\"\",I199)","v":""},{"$f":"IF(ISBLANK(H199)=TRUE,\"\",H199)","v":""},{"$f":"IF(ISBLANK(C199)=TRUE,\"\",C199)","v":""},{"$f":"IF(ISBLANK(D199)=TRUE,\"\",D199)","v":""},{"$f":"IF(ISBLANK(F199)=TRUE,\"\",F199)","v":""},null,{"$f":"IF(ISBLANK(L199)=TRUE,\"\",L199)","v":""},{"$f":"IF(ISBLANK(K199)=TRUE,\"\",K199)","v":""},null,{"$f":"IF(ISBLANK(J199)=TRUE,\"\",J199)","v":""},{"$f":"IF(ISBLANK(N199)=TRUE,\"\",N199)","v":""},{"$f":"IF(ISBLANK(A199)=TRUE,\"\",A199)","v":""}]
[null,null,null,null,null,null,null,null,null,null,null,null,null,null,null,"","","1","","","","","",null,"","",null,"","",""]
[null,null,null,null,null,null,null,null,null,null,null,null,null,null,null,"","","1","","","","","",null,"","",null,"","",""]
[null,null,null,null,null,null,null,null,null,null,null,null,null,null,null,"","","1","","","","","",null,"","",null,"","",""]
[null,null,null,null,null,null,null,null,null,null,null,null,null,null,null,"","","1","","","","","",null,"","",null,"","",""]
[null,null,null,null,null,null,null,null,null,null,null,null,null,null,null,"","","1","","","","","",null,"","",null,"","",""]
[null,null,null,null,null,null,null,null,null,null,null,null,null,null,null,"","","1","","","","","",null,"","",null,"","",""]
[null,null,null,null,null,null,null,null,null,null,null,null,null,null,null,"","","1","","","","","",null,"","",null,"","",""]
[null,null,null,null,null,null,null,null,null,null,null,null,null,null,null,"","","1","","","","","",null,"","",null,"","",""]
[null,null,null,null,null,null,null,null,null,null,null,null,null,null,null,"","","1","","","","","",null,"","",null,"","",""]
[null,null,null,null,null,null,null,null,null,null,null,null,null,null,null,"","","1","","","","","",null,"","",null,"","",""]
[null,null,null,null,null,null,null,null,null,null,null,null,null,null,null,"","","1","","","","","",null,"","",null,"","",""]
[null,null,null,null,null,null,null,null,null,null,null,null,null,null,null,"","","1","","","","","",null,"","",null,"","",""]
[null,null,null,null,null,null,null,null,null,null,null,null,null,null,null,"","","1","","","","","",null,"","",null,"","",""]
[null,null,null,null,null,null,null,null,null,null,null,null,null,null,null,"","","1","","","","","",null,"","",null,"","",""]
[null,null,null,null,null,null,null,null,null,null,null,null,null,null,null,"","","1","","","","","",null,"","",null,"","",""]
[null,null,null,null,null,null,null,null,null,null,null,null,null,null,null,"","","1","","","","","",null,"","",null,"","",""]
[null,null,null,null,null,null,null,null,null,null,null,null,null,null,null,"","","1","","","","","",null,"","",null,"","",""]
[null,null,null,null,null,null,null,null,null,null,null,null,null,null,null,"","","1","","","","","",null,"","",null,"","",""]
[null,null,null,null,null,null,null,null,null,null,null,null,null,null,null,"","","1","","","","","",null,"","",null,"","",""]
[null,null,null,null,null,null,null,null,null,null,null,null,null,null,null,"","","1","","","","","",null,"","",null,"","",""]
[null,null,null,null,null,null,null,null,null,null,null,null,null,null,null,"","","1","","","","","",null,"","",null,"","",""]
[null,null,null,null,null,null,null,null,null,null,null,null,null,null,null,"","","1","","","","","",null,"","",null,"","",""]
[null,null,null,null,null,null,null,null,null,null,null,null,null,null,null,"","","1","","","","","",null,"","",null,"","",""]
[null,null,null,null,null,null,null,null,null,null,null,null,null,null,null,"","","1","","","","","",null,"","",null,"","",""]
[null,null,null,null,null,null,null,null,null,null,null,null,null,null,null,"","","1","","","","","",null,"","",null,"","",""]
[null,null,null,null,null,null,null,null,null,null,null,null,null,null,null,"","","1","","","","","",null,"","",null,"","",""]
[null,null,null,null,null,null,null,null,null,null,null,null,null,null,null,"","","1","","","","","",null,"","",null,"","",""]
[null,null,null,null,null,null,null,null,null,null,null,null,null,null,null,"","","1","","","","","",null,"","",null,"","",""]
[null,null,null,null,null,null,null,null,null,null,null,null,null,null,null,"","","1","","","","","",null,"","",null,"","",""]
[null,null,null,null,null,null,null,null,null,null,null,null,null,null,null,"","","1","","","","","",null,"","",null,"","",""]
[null,null,null,null,null,null,null,null,null,null,null,null,null,null,null,"","","1","","","","","",null,"","",null,"","",""]
[null,null,null,null,null,null,null,null,null,null,null,null,null,null,null,"","","1","","","","","",null,"","",null,"","",""]
[null,null,null,null,null,null,null,null,null,null,null,null,null,null,null,"","","1","","","","","",null,"","",null,"","",""]
[null,null,null,null,null,null,null,null,null,null,null,null,null,null,null,"","","1","","","","","",null,"","",null,"","",""]
[null,null,null,null,null,null,null,null,null,null,null,null,null,null,null,"","","1","","","","","",null,"","",null,"","",""]
[null,null,null,null,null,null,null,null,null,null,null,null,null,null,null,"","","1","","","","","",null,"","",null,"","",""]
[null,null,null,null,null,null,null,null,null,null,null,null,null,null,null,"","","1","","","","","",null,"","",null,"","",""]
[null,null,null,null,null,null,null,null,null,null,null,null,null,null,null,"","","1","","","","","",null,"","",null,"","",""]
[null,null,null,null,null,null,null,null,null,null,null,null,null,null,null,"","","1","","","","","",null,"","",null,"","",""]
[null,null,null,null,null,null,null,null,null,null,null,null,null,null,null,"","","1","","","","","",null,"","",null,"","",""]
[null,null,null,null,null,null,null,null,null,null,null,null,null,null,null,"","","1","","","","","",null,"","",null,"","",""]
[null,null,null,null,null,null,null,null,null,null,null,null,null,null,null,"","","1","","","","","",null,"","",null,"","",""]
[null,null,null,null,null,null,null,null,null,null,null,null,null,null,null,"","","1","","","","","",null,"","",null,"","",""]
[null,null,null,null,null,null,null,null,null,null,null,null,null,null,null,"","","1","","","","","",null,"","",null,"","",""]
[null,null,null,null,null,null,null,null,null,null,null,null,null,null,null,"","","1","","","","","",null,"","",null,"","",""]
[null,null,null,null,null,null,null,null,null,null,null,null,null,null,null,"","","1","","","","","",null,"","",null,"","",""]
[null,null,null,null,null,null,null,null,null,null,null,null,null,null,null,"","","1","","","","","",null,"","",null,"","",""]
[null,null,null,null,null,null,null,null,null,null,null,null,null,null,null,"","","1","","","","","",null,"","",null,"","",""]
[null,null,null,null,null,null,null,null,null,null,null,null,null,null,null,"","","1","","","","","",null,"","",null,"","",""]
[null,null,null,null,null,null,null,null,null,null,null,null,null,null,null,"","","1","","","","","",null,"","",null,"","",""]
[null,null,null,null,null,null,null,null,null,null,null,null,null,null,null,"","","1","","","","","",null,"","",null,"","",""]
[null,null,null,null,null,null,null,null,null,null,null,null,null,null,null,"","","1","","","","","",null,"","",null,"","",""]
[null,null,null,null,null,null,null,null,null,null,null,null,null,null,null,"","","1","","","","","",null,"","",null,"","",""]
[null,null,null,null,null,null,null,null,null,null,null,null,null,null,null,"","","1","","","","","",null,"","",null,"","",""]
[null,null,null,null,null,null,null,null,null,null,null,null,null,null,null,"","","1","","","","","",null,"","",null,"","",""]
[null,null,null,null,null,null,null,null,null,null,null,null,null,null,null,"","","1","","","","","",null,"","",null,"","",""]
[null,null,null,null,null,null,null,null,null,null,null,null,null,null,null,"","","1","","","","","",null,"","",null,"","",""]
[null,null,null,null,null,null,null,null,null,null,null,null,null,null,null,"","","1","","","","","",null,"","",null,"","",""]
[null,null,null,null,null,null,null,null,null,null,null,null,null,null,null,"","","1","","","","","",null,"","",null,"","",""]
[null,null,null,null,null,null,null,null,null,null,null,null,null,null,null,"","","1","","","","","",null,"","",null,"","",""]
[null,null,null,null,null,null,null,null,null,null,null,null,null,null,null,"","","1","","","","","",null,"","",null,"","",""]
[null,null,null,null,null,null,null,null,null,null,null,null,null,null,null,"","","1","","","","","",null,"","",null,"","",""]
[null,null,null,null,null,null,null,null,null,null,null,null,null,null,null,"","","1","","","","","",null,"","",null,"","",""]
[null,null,null,null,null,null,null,null,null,null,null,null,null,null,null,{"$f":"IF(ISBLANK(B263)=TRUE,\"\",B263)","v":""},{"$f":"IF(ISBLANK(G263)=TRUE,\"\",G263)","v":""},{"$f":"IF(ISBLANK(E263)=TRUE,\"1\",E263)","v":"1"},{"$f":"IF(ISBLANK(I263)=TRUE,\"\",I263)","v":""},{"$f":"IF(ISBLANK(H263)=TRUE,\"\",H263)","v":""},{"$f":"IF(ISBLANK(C263)=TRUE,\"\",C263)","v":""},{"$f":"IF(ISBLANK(D263)=TRUE,\"\",D263)","v":""},{"$f":"IF(ISBLANK(F263)=TRUE,\"\",F263)","v":""},null,{"$f":"IF(ISBLANK(L263)=TRUE,\"\",L263)","v":""},{"$f":"IF(ISBLANK(K263)=TRUE,\"\",K263)","v":""},null,{"$f":"IF(ISBLANK(J263)=TRUE,\"\",J263)","v":""},{"$f":"IF(ISBLANK(N263)=TRUE,\"\",N263)","v":""},{"$f":"IF(ISBLANK(A263)=TRUE,\"\",A263)","v":""}]
[null,null,null,null,null,null,null,null,null,null,null,null,null,null,null,"","","1","","","","","",null,"","",null,"","",""]
[null,null,null,null,null,null,null,null,null,null,null,null,null,null,null,"","","1","","","","","",null,"","",null,"","",""]
[null,null,null,null,null,null,null,null,null,null,null,null,null,null,null,"","","1","","","","","",null,"","",null,"","",""]
[null,null,null,null,null,null,null,null,null,null,null,null,null,null,null,"","","1","","","","","",null,"","",null,"","",""]
[null,null,null,null,null,null,null,null,null,null,null,null,null,null,null,"","","1","","","","","",null,"","",null,"","",""]
[null,null,null,null,null,null,null,null,null,null,null,null,null,null,null,"","","1","","","","","",null,"","",null,"","",""]
[null,null,null,null,null,null,null,null,null,null,null,null,null,null,null,"","","1","","","","","",null,"","",null,"","",""]
[null,null,null,null,null,null,null,null,null,null,null,null,null,null,null,"","","1","","","","","",null,"","",null,"","",""]
[null,null,null,null,null,null,null,null,null,null,null,null,null,null,null,"","","1","","","","","",null,"","",null,"","",""]
[null,null,null,null,null,null,null,null,null,null,null,null,null,null,null,"","","1","","","","","",null,"","",null,"","",""]
[null,null,null,null,null,null,null,null,null,null,null,null,null,null,null,"","","1","","","","","",null,"","",null,"","",""]
[null,null,null,null,null,null,null,null,null,null,null,null,null,null,null,"","","1","","","","","",null,"","",null,"","",""]
[null,null,null,null,null,null,null,null,null,null,null,null,null,null,null,"","","1","","","","","",null,"","",null,"","",""]
[null,null,null,null,null,null,null,null,null,null,null,null,null,null,null,"","","1","","","","","",null,"","",null,"","",""]
[null,null,null,null,null,null,null,null,null,null,null,null,null,null,null,"","","1","","","","","",null,"","",null,"","",""]
[null,null,null,null,null,null,null,null,null,null,null,null,null,null,null,"","","1","","","","","",null,"","",null,"","",""]
[null,null,null,null,null,null,null,null,null,null,null,null,null,null,null,"","","1","","","","","",null,"","",null,"","",""]
[null,null,null,null,null,null,null,null,null,null,null,null,null,null,null,"","","1","","","","","",null,"","",null,"","",""]
[null,null,null,null,null,null,null,null,null,null,null,null,null,null,null,"","","1","","","","","",null,"","",null,"","",""]
[null,null,null,null,null,null,null,null,null,null,null,null,null,null,null,"","","1","","","","","",null,"","",null,"","",""]
[null,null,null,null,null,null,null,null,null,null,null,null,null,null,null,"","","1","","","","","",null,"","",null,"","",""]
[null,null,null,null,null,null,null,null,null,null,null,null,null,null,null,"","","1","","","","","",null,"","",null,"","",""]
[null,null,null,null,null,null,null,null,null,null,null,null,null,null,null,"","","1","","","","","",null,"","",null,"","",""]
[null,null,null,null,null,null,null,null,null,null,null,null,null,null,null,"","","1","","","","","",null,"","",null,"","",""]
[null,null,null,null,null,null,null,null,null,null,null,null,null,null,null,"","","1","","","","","",null,"","",null,"","",""]
[null,null,null,null,null,null,null,null,null,null,null,null,null,null,null,"","","1","","","","","",null,"","",null,"","",""]
[null,null,null,null,null,null,null,null,null,null,null,null,null,null,null,"","","1","","","","","",null,"","",null,"","",""]
[null,null,null,null,null,null,null,null,null,null,null,null,null,null,null,"","","1","","","","","",null,"","",null,"","",""]
[null,null,null,null,null,null,null,null,null,null,null,null,null,null,null,"","","1","","","","","",null,"","",null,"","",""]
[null,null,null,null,null,null,null,null,null,null,null,null,null,null,null,"","","1","","","","","",null,"","",null,"","",""]
[null,null,null,null,null,null,null,null,null,null,null,null,null,null,null,"","","1","","","","","",null,"","",null,"","",""]
[null,null,null,null,null,null,null,null,null,null,null,null,null,null,null,"","","1","","","","","",null,"","",null,"","",""]
[null,null,null,null,null,null,null,null,null,null,null,null,null,null,null,"","","1","","","","","",null,"","",null,"","",""]
[null,null,null,null,null,null,null,null,null,null,null,null,null,null,null,"","","1","","","","","",null,"","",null,"","",""]
[null,null,null,null,null,null,null,null,null,null,null,null,null,null,null,"","","1","","","","","",null,"","",null,"","",""]
[null,null,null,null,null,null,null,null,null,null,null,null,null,null,null,"","","1","","","","","",null,"","",null,"","",""]
[null,null,null,null,null,null,null,null,null,null,null,null,null,null,null,"","","1","","","","","",null,"","",null,"","",""]
[null,null,null,null,null,null,null,null,null,null,null,null,null,null,null,"","","1","","","","","",null,"","",null,"","",""]
[null,null,null,null,null,null,null,null,null,null,null,null,null,null,null,"","","1","","","","","",null,"","",null,"","",""]
[null,null,null,null,null,null,null,null,null,null,null,null,null,null,null,"","","1","","","","","",null,"","",null,"","",""]
[null,null,null,null,null,null,null,null,null,null,null,null,null,null,null,"","","1","","","","","",null,"","",null,"","",""]
[null,null,null,null,null,null,null,null,null,null,null,null,null,null,null,"","","1","","","","","",null,"","",null,"","",""]
[null,null,null,null,null,null,null,null,null,null,null,null,null,null,null,"","","1","","","","","",null,"","",null,"","",""]
[null,null,null,null,null,null,null,null,null,null,null,null,null,null,null,"","","1","","","","","",null,"","",null,"","",""]
[null,null,null,null,null,null,null,null,null,null,null,null,null,null,null,"","",null,null,"","","","",null,"","",null,"","",""]
[null,null,null,null,null,null,null,null,null,null,null,null,null,null,null,"","",null,null,"","","","",null,"","",null,"","",""]
[null,null,null,null,null,null,null,null,null,null,null,null,null,null,null,"","",null,null,"","","","",null,"","",null,"","",""]
[null,null,null,null,null,null,null,null,null,null,null,null,null,null,null,"","",null,null,"","","","",null,"","",null,"","",""]
[null,null,null,null,null,null,null,null,null,null,null,null,null,null,null,"","",null,null,"","","","",null,"","",null,"","",""]
[null,null,null,null,null,null,null,null,null,null,null,null,null,null,null,"","",null,null,"","","","",null,"","",null,"","",""]
[null,null,null,null,null,null,null,null,null,null,null,null,null,null,null,"","",null,null,"","","","",null,"","",null,"","",""]
[null,null,null,null,null,null,null,null,null,null,null,null,null,null,null,"","",null,null,"","","","",null,"","",null,"","",""]
[null,null,null,null,null,null,null,null,null,null,null,null,null,null,null,"","",null,null,"","","","",null,"","",null,"","",""]
[null,null,null,null,null,null,null,null,null,null,null,null,null,null,null,"","",null,null,"","","","",null,"","",null,"","",""]
[null,null,null,null,null,null,null,null,null,null,null,null,null,null,null,"","",null,null,"","","","",null,"","",null,"","",""]
[null,null,null,null,null,null,null,null,null,null,null,null,null,null,null,"","",null,null,"","","","",null,"","",null,"","",""]
[null,null,null,null,null,null,null,null,null,null,null,null,null,null,null,"","",null,null,"","","","",null,"","",null,"","",""]
[null,null,null,null,null,null,null,null,null,null,null,null,null,null,null,"","",null,null,"","","","",null,"","",null,"","",""]
[null,null,null,null,null,null,null,null,null,null,null,null,null,null,null,"","",null,null,"","","","",null,"","",null,"","",""]
[null,null,null,null,null,null,null,null,null,null,null,null,null,null,null,"","",null,null,"","","","",null,"","",null,"","",""]
[null,null,null,null,null,null,null,null,null,null,null,null,null,null,null,"","",null,null,"","","","",null,"","",null,"","",""]
[null,null,null,null,null,null,null,null,null,null,null,null,null,null,null,"","",null,null,"","","","",null,"","",null,"","",""]
[null,null,null,null,null,null,null,null,null,null,null,null,null,null,null,"","",null,null,"","","","",null,"","",null,"","",""]
[null,null,null,null,null,null,null,null,null,null,null,null,null,null,null,{"$f":"IF(ISBLANK(B327)=TRUE,\"\",B327)","v":""},{"$f":"IF(ISBLANK(G327)=TRUE,\"\",G327)","v":""},null,null,{"$f":"IF(ISBLANK(H327)=TRUE,\"\",H327)","v":""},{"$f":"IF(ISBLANK(C327)=TRUE,\"\",C327)","v":""},{"$f":"IF(ISBLANK(D327)=TRUE,\"\",D327)","v":""},{"$f":"IF(ISBLANK(F327)=TRUE,\"\",F327)","v":""},null,{"$f":"IF(ISBLANK(L327)=TRUE,\"\",L327)","v":""},{"$f":"IF(ISBLANK(K327)=TRUE,\"\",K327)","v":""},null,{"$f":"IF(ISBLANK(J327)=TRUE,\"\",J327)","v":""},{"$f":"IF(ISBLANK(N327)=TRUE,\"\",N327)","v":""},{"$f":"IF(ISBLANK(A327)=TRUE,\"\",A327)","v":""}]
[null,null,null,null,null,null,null,null,null,null,null,null,null,null,null,"","",null,null,"","","","",null,"","",null,"","",""]
[null,null,null,null,null,null,null,null,null,null,null,null,null,null,null,"","",null,null,"","","","",null,"","",null,"","",""]
[null,null,null,null,null,null,null,null,null,null,null,null,null,null,null,"","",null,null,"","","","",null,"","",null,"","",""]
[null,null,null,null,null,null,null,null,null,null,null,null,null,null,null,"","",null,null,"","","","",null,"","",null,"","",""]
[null,null,null,null,null,null,null,null,null,null,null,null,null,null,null,"","",null,null,"","","","",null,"","",null,"","",""]
[null,null,null,null,null,null,null,null,null,null,null,null,null,null,null,"","",null,null,"","","","",null,"","",null,"","",""]
[null,null,null,null,null,null,null,null,null,null,null,null,null,null,null,"","",null,null,"","","","",null,"","",null,"","",""]
[null,null,null,null,null,null,null,null,null,null,null,null,null,null,null,"","",null,null,"","","","",null,"","",null,"","",""]
[null,null,null,null,null,null,null,null,null,null,null,null,null,null,null,"","",null,null,"","","","",null,"","",null,"","",""]
[null,null,null,null,null,null,null,null,null,null,null,null,null,null,null,"","",null,null,"","","","",null,"","",null,"","",""]
[null,null,null,null,null,null,null,null,null,null,null,null,null,null,null,"","",null,null,"","","","",null,"","",null,"","",""]
[null,null,null,null,null,null,null,null,null,null,null,null,null,null,null,"","",null,null,"","","","",null,"","",null,"","",""]
[null,null,null,null,null,null,null,null,null,null,null,null,null,null,null,"","",null,null,"","","","",null,"","",null,"","",""]
[null,null,null,null,null,null,null,null,null,null,null,null,null,null,null,"","",null,null,"","","","",null,"","",null,"","",""]
[null,null,null,null,null,null,null,null,null,null,null,null,null,null,null,"","",null,null,"","","","",null,"","",null,"","",""]
[null,null,null,null,null,null,null,null,null,null,null,null,null,null,null,"","",null,null,"","","","",null,"","",null,"","",""]
[null,null,null,null,null,null,null,null,null,null,null,null,null,null,null,"","",null,null,"","","","",null,"","",null,"","",""]
[null,null,null,null,null,null,null,null,null,null,null,null,null,null,null,"","",null,null,"","","","",null,"","",null,"","",""]
[null,null,null,null,null,null,null,null,null,null,null,null,null,null,null,"","",null,null,"","","","",null,"","",null,"","",""]
[null,null,null,null,null,null,null,null,null,null,null,null,null,null,null,"","",null,null,"","","","",null,"","",null,"","",""]
[null,null,null,null,null,null,null,null,null,null,null,null,null,null,null,"","",null,null,"","","","",null,"","",null,"","",""]
[null,null,null,null,null,null,null,null,null,null,null,null,null,null,null,"","",null,null,"","","","",null,"","",null,"","",""]
[null,null,null,null,null,null,null,null,null,null,null,null,null,null,null,"","",null,null,"","","","",null,"","",null,"","",""]
[null,null,null,null,null,null,null,null,null,null,null,null,null,null,null,"","",null,null,"","","","",null,"","",null,"","",""]
[null,null,null,null,null,null,null,null,null,null,null,null,null,null,null,"","",null,null,"","","","",null,"","",null,"","",""]
[null,null,null,null,null,null,null,null,null,null,null,null,null,null,null,"","",null,null,"","","","",null,"","",null,"","",""]
[null,null,null,null,null,null,null,null,null,null,null,null,null,null,null,"","",null,null,"","","","",null,"","",null,"","",""]
[null,null,null,null,null,null,null,null,null,null,null,null,null,null,null,"","",null,null,"","","","",null,"","",null,"","",""]
[null,null,null,null,null,null,null,null,null,null,null,null,null,null,null,"","",null,null,"","","","",null,"","",null,"","",""]
[null,null,null,null,null,null,null,null,null,null,null,null,null,null,null,"","",null,null,"","","","",null,"","",null,"","",""]
[null,null,null,null,null,null,null,null,null,null,null,null,null,null,null,"","",null,null,"","","","",null,"","",null,"","",""]
[null,null,null,null,null,null,null,null,null,null,null,null,null,null,null,"","",null,null,"","","","",null,"","",null,"","",""]
[null,null,null,null,null,null,null,null,null,null,null,null,null,null,null,"","",null,null,"","","","",null,"","",null,"","",""]
[null,null,null,null,null,null,null,null,null,null,null,null,null,null,null,"","",null,null,"","","","",null,"","",null,"","",""]
[null,null,null,null,null,null,null,null,null,null,null,null,null,null,null,"","",null,null,"","","","",null,"","",null,"","",""]
[null,null,null,null,null,null,null,null,null,null,null,null,null,null,null,"","",null,null,"","","","",null,"","",null,"","",""]
[null,null,null,null,null,null,null,null,null,null,null,null,null,null,null,"","",null,null,"","","","",null,"","",null,"","",""]
[null,null,null,null,null,null,null,null,null,null,null,null,null,null,null,"","",null,null,"","","","",null,"","",null,"","",""]
[null,null,null,null,null,null,null,null,null,null,null,null,null,null,null,"","",null,null,"","","","",null,"","",null,"","",""]
[null,null,null,null,null,null,null,null,null,null,null,null,null,null,null,"","",null,null,"","","","",null,"","",null,"","",""]
[null,null,null,null,null,null,null,null,null,null,null,null,null,null,null,"","",null,null,"","","","",null,"","",null,"","",""]
[null,null,null,null,null,null,null,null,null,null,null,null,null,null,null,"","",null,null,"","","","",null,"","",null,"","",""]
[null,null,null,null,null,null,null,null,null,null,null,null,null,null,null,"","",null,null,"","","","",null,"","",null,"","",""]
[null,null,null,null,null,null,null,null,null,null,null,null,null,null,null,"","",null,null,"","","","",null,"","",null,"","",""]
[null,null,null,null,null,null,null,null,null,null,null,null,null,null,null,"","",null,null,"","","","",null,"","",null,"","",""]
[null,null,null,null,null,null,null,null,null,null,null,null,null,null,null,"","",null,null,"","","","",null,"","",null,"","",""]
[null,null,null,null,null,null,null,null,null,null,null,null,null,null,null,"","",null,null,"","","","",null,"","",null,"","",""]
[null,null,null,null,null,null,null,null,null,null,null,null,null,null,null,"","",null,null,"","","","",null,"","",null,"","",""]
[null,null,null,null,null,null,null,null,null,null,null,null,null,null,null,"","",null,null,"","","","",null,"","",null,"","",""]
[null,null,null,null,null,null,null,null,null,null,null,null,null,null,null,"","",null,null,"","","","",null,"","",null,"","",""]
[null,null,null,null,null,null,null,null,null,null,null,null,null,null,null,"","",null,null,"","","","",null,"","",null,"","",""]
[null,null,null,null,null,null,null,null,null,null,null,null,null,null,null,"","",null,null,"","","","",null,"","",null,"","",""]
[null,null,null,null,null,null,null,null,null,null,null,null,null,null,null,"","",null,null,"","","","",null,"","",null,"","",""]
[null,null,null,null,null,null,null,null,null,null,null,null,null,null,null,"","",null,null,"","","","",null,"","",null,"","",""]
[null,null,null,null,null,null,null,null,null,null,null,null,null,null,null,"","",null,null,"","","","",null,"","",null,"","",""]
[null,null,null,null,null,null,null,null,null,null,null,null,null,null,null,"","",null,null,"","","","",null,"","",null,"","",""]
[null,null,null,null,null,null,null,null,null,null,null,null,null,null,null,"","",null,null,"","","","",null,"","",null,"","",""]
[null,null,null,null,null,null,null,null,null,null,null,null,null,null,null,"","",null,null,"","","","",null,"","",null,"","",""]
[null,null,null,null,null,null,null,null,null,null,null,null,null,null,null,"","",null,null,"","","","",null,"","",null,"","",""]
[null,null,null,null,null,null,null,null,null,null,null,null,null,null,null,"","",null,null,"","","","",null,"","",null,"","",""]
[null,null,null,null,null,null,null,null,null,null,null,null,null,null,null,"","",null,null,"","","","",null,"","",null,"","",""]
[null,null,null,null,null,null,null,null,null,null,null,null,null,null,null,"","",null,null,"","","","",null,"","",null,"","",""]
[null,null,null,null,null,null,null,null,null,null,null,null,null,null,null,"","",null,null,"","","","",null,"","",null,"","",""]
[null,null,null,null,null,null,null,null,null,null,null,null,null,null,null,{"$f":"IF(ISBLANK(B391)=TRUE,\"\",B391)","v":""},{"$f":"IF(ISBLANK(G391)=TRUE,\"\",G391)","v":""},null,null,{"$f":"IF(ISBLANK(H391)=TRUE,\"\",H391)","v":""},{"$f":"IF(ISBLANK(C391)=TRUE,\"\",C391)","v":""},{"$f":"IF(ISBLANK(D391)=TRUE,\"\",D391)","v":""},{"$f":"IF(ISBLANK(F391)=TRUE,\"\",F391)","v":""},null,{"$f":"IF(ISBLANK(L391)=TRUE,\"\",L391)","v":""},{"$f":"IF(ISBLANK(K391)=TRUE,\"\",K391)","v":""},null,{"$f":"IF(ISBLANK(J391)=TRUE,\"\",J391)","v":""},{"$f":"IF(ISBLANK(N391)=TRUE,\"\",N391)","v":""},{"$f":"IF(ISBLANK(A391)=TRUE,\"\",A391)","v":""}]
[null,null,null,null,null,null,null,null,null,null,null,null,null,null,null,"","",null,null,"","","","",null,"","",null,"","",""]
[null,null,null,null,null,null,null,null,null,null,null,null,null,null,null,"","",null,null,"","","","",null,"","",null,"","",""]
[null,null,null,null,null,null,null,null,null,null,null,null,null,null,null,"","",null,null,"","","","",null,"","",null,"","",""]
[null,null,null,null,null,null,null,null,null,null,null,null,null,null,null,"","",null,null,"","","","",null,"","",null,"","",""]
[null,null,null,null,null,null,null,null,null,null,null,null,null,null,null,"","",null,null,"","","","",null,"","",null,"","",""]
[null,null,null,null,null,null,null,null,null,null,null,null,null,null,null,"","",null,null,"","","","",null,"","",null,"","",""]
[null,null,null,null,null,null,null,null,null,null,null,null,null,null,null,"","",null,null,"","","","",null,"","",null,"","",""]
[null,null,null,null,null,null,null,null,null,null,null,null,null,null,null,"","",null,null,"","","","",null,"","",null,"","",""]
[null,null,null,null,null,null,null,null,null,null,null,null,null,null,null,"","",null,null,"","","","",null,"","",null,"","",""]
[null,null,null,null,null,null,null,null,null,null,null,null,null,null,null,"","",null,null,"","","","",null,"","",null,"","",""]
[null,null,null,null,null,null,null,null,null,null,null,null,null,null,null,"","",null,null,"","","","",null,"","",null,"","",""]
[null,null,null,null,null,null,null,null,null,null,null,null,null,null,null,"","",null,null,"","","","",null,"","",null,"","",""]
[null,null,null,null,null,null,null,null,null,null,null,null,null,null,null,"","",null,null,"","","","",null,"","",null,"","",""]
[null,null,null,null,null,null,null,null,null,null,null,null,null,null,null,"","",null,null,"","","","",null,"","",null,"","",""]
[null,null,null,null,null,null,null,null,null,null,null,null,null,null,null,"","",null,null,"","","","",null,"","",null,"","",""]
[null,null,null,null,null,null,null,null,null,null,null,null,null,null,null,"","",null,null,"","","","",null,"","",null,"","",""]
[null,null,null,null,null,null,null,null,null,null,null,null,null,null,null,"","",null,null,"","","","",null,"","",null,"","",""]
[null,null,null,null,null,null,null,null,null,null,null,null,null,null,null,"","",null,null,"","","","",null,"","",null,"","",""]
[null,null,null,null,null,null,null,null,null,null,null,null,null,null,null,"","",null,null,"","","","",null,"","",null,"","",""]
[null,null,null,null,null,null,null,null,null,null,null,null,null,null,null,"","",null,null,"","","","",null,"","",null,"","",""]
[null,null,null,null,null,null,null,null,null,null,null,null,null,null,null,"","",null,null,"","","","",null,"","",null,"","",""]
[null,null,null,null,null,null,null,null,null,null,null,null,null,null,null,"","",null,null,"","","","",null,"","",null,"","",""]
[null,null,null,null,null,null,null,null,null,null,null,null,null,null,null,"","",null,null,"","","","",null,"","",null,"","",""]
[null,null,null,null,null,null,null,null,null,null,null,null,null,null,null,"","",null,null,"","","","",null,"","",null,"","",""]
[null,null,null,null,null,null,null,null,null,null,null,null,null,null,null,"","",null,null,"","","","",null,"","",null,"","",""]
[null,null,null,null,null,null,null,null,null,null,null,null,null,null,null,"","",null,null,"","","","",null,"","",null,"","",""]
[null,null,null,null,null,null,null,null,null,null,null,null,null,null,null,"","",null,null,"","","","",null,"","",null,"","",""]
[null,null,null,null,null,null,null,null,null,null,null,null,null,null,null,"","",null,null,"","","","",null,"","",null,"","",""]
[null,null,null,null,null,null,null,null,null,null,null,null,null,null,null,"","",null,null,"","","","",null,"","",null,"","",""]
[null,null,null,null,null,null,null,null,null,null,null,null,null,null,null,"","",null,null,"","","","",null,"","",null,"","",""]
[null,null,null,null,null,null,null,null,null,null,null,null,null,null,null,"","",null,null,"","","","",null,"","",null,"","",""]
[null,null,null,null,null,null,null,null,null,null,null,null,null,null,null,"","",null,null,"","","","",null,"","",null,"","",""]
[null,null,null,null,null,null,null,null,null,null,null,null,null,null,null,"","",null,null,"","","","",null,"","",null,"","",""]
[null,null,null,null,null,null,null,null,null,null,null,null,null,null,null,"","",null,null,"","","","",null,"","",null,"","",""]
[null,null,null,null,null,null,null,null,null,null,null,null,null,null,null,"","",null,null,"","","","",null,"","",null,"","",""]

{"sheet":"Standard","index":2,"n_rows":11,"n_cols":3,"rows_kept":11,"cut":false,"hidden":false,"merged":[]}
["Gewerke","Rechnungsaussteller","Rechnungsgegenstand"]
["Erdarbeiten"]
["Maurer- und Betonarbeiten"]
["Zimmerarbeiten"]
["Dachdeckerarbeiten"]
["Stahlhalle/Hallenoberbau"]
["Elektroinstallation"]
["Mistplatte"]
["Güllehochbehälter"]
["Baunebenkosten"]
["Betreuung"]